bitfinex/quotes_SOLUSD_20240827
["timestamp","ask_amount","ask_price","bid_price","bid_amount"]
[1724718589385,0.17703,158.13,158.11,10.07806883]
[1724718591789,0.17703,158.13,158.12,1.5836303]
[1724718593270,65.37598783,158.13,158.12,1.5836303]
[1724718594082,6.3247,158.11,158.07,15.8156]
[1724718594278,12.2938218,158.09,158.08,1.5840475]
[1724718595672,18.6193218,158.09,158.08,1.5840475]
[1724718595970,16.2234,158.08,158.01,6.30765691]
[1724718596174,12.2938218,158.02,157.99,20.52152805]
[1724718596363,12.2938218,158.02,158.0,7.42905753]
[1724718596557,12.2938218,158.02,158.01,7.42905753]
[1724718597966,13.87590596,158.04,158.01,7.42905753]
[1724718598166,1.58208401,158.05,158.02,1.58437775]
[1724718598368,12.2938218,158.04,158.03,1.58437775]
[1724718598578,13.87590228,158.04,158.03,1.58437775]
[1724718599358,13.87590228,158.04,158.01,6.3287]
[1724718599588,12.2938218,158.04,158.02,1.58437468]
[1724718599897,12.2938218,158.04,158.01,9.68156178]
[1724718600105,12.2938218,158.04,158.02,1.58437502]
[1724718600385,12.2938218,158.04,158.03,1.58437502]
[1724718605472,12.2938218,158.04,158.03,1.5843828]
[1724718605667,12.2938218,158.06,158.03,1.5843828]
[1724718605983,12.2938218,158.06,158.01,7.59426344]
[1724718606303,12.2938218,158.06,158.04,1.58438195]
[1724718609710,67.5493,158.08,158.04,1.58438195]
[1724718609866,79.8431218,158.08,158.04,1.58438195]
[1724718610067,79.8431218,158.08,158.05,1.58421713]
[1724718610275,79.8431218,158.08,158.04,1.58438195]
[1724718610276,12.2938218,158.08,158.04,7.91178195]
[1724718610472,12.2938218,158.08,158.05,1.58421584]
[1724718610682,12.2938218,158.08,158.06,1.58414956]
[1724718610909,12.2938218,158.08,158.04,7.91178195]
[1724718611081,12.2938218,158.08,158.05,1.58410009]
[1724718611377,12.2938218,158.08,158.06,1.58410009]
[1724718611594,12.2938218,158.08,158.04,7.91178195]
[1724718611888,12.2938218,158.08,158.05,1.58408861]
[1724718612093,12.2938218,158.08,158.06,1.58408861]
[1724718612297,12.2938218,158.08,158.04,6.3274]
[1724718612689,12.2938218,158.08,158.05,1.58415353]
[1724718612904,12.2938218,158.08,158.06,1.58415353]
[1724718613208,12.2938218,158.08,158.04,6.3274]
[1724718613507,12.2938218,158.08,158.05,1.58415286]
[1724718613697,12.2938218,158.08,158.06,1.58415286]
[1724718614005,12.2938218,158.08,158.04,6.3274]
[1724718614203,12.2938218,158.08,158.05,1.58415353]
[1724718614394,12.2938218,158.08,158.06,1.58415353]
[1724718614709,12.2938218,158.08,158.04,6.3274]
[1724718614915,12.2938218,158.08,158.05,1.58415353]
[1724718615081,12.2938218,158.08,158.06,1.58415353]
[1724718615281,12.2938218,158.08,158.04,6.3274]
[1724718615484,12.2938218,158.08,158.05,1.58412107]
[1724718615774,12.2938218,158.08,158.06,1.58412074]
[1724718615982,12.2938218,158.08,158.04,6.3274]
[1724718616200,6.3256,158.09,158.04,6.3274]
[1724718616411,1.58171585,158.08,158.04,6.3274]
[1724718618006,18.6194218,158.09,158.04,6.3274]
[1724718618206,20.20116535,158.09,158.04,6.3274]
[1724718619204,18.6194218,158.09,158.04,6.3274]
[1724718619596,12.2938218,158.07,158.04,6.3274]
[1724718621598,1.58174595,158.11,158.03,15.8192]
[1724718621795,12.2938218,158.09,158.05,6.327]
[1724718621999,1.58158178,158.08,158.05,6.327]
[1724718622196,12.2938218,158.09,158.05,6.327]
[1724718625525,45.0,158.11,158.07,6.3262]
[1724718625526,57.2938218,158.11,158.07,6.3262]
[1724718628219,12.2938218,158.11,158.08,6.3258]
[1724718628382,18.7947518,158.13,158.08,6.3258]
[1724718628585,46.58139833,158.12,158.08,6.3258]
[1724718629685,45.0,158.12,158.08,6.3258]
[1724718630302,20.37614807,158.13,158.09,6.3255]
[1724718630936,1.5812965,158.12,158.09,6.3255]
[1724718634439,12.2938218,158.11,158.04,15.8182]
[1724718634713,12.2938218,158.05,158.01,21.8636]
[1724718635014,12.2938218,158.05,158.02,9.67957919]
[1724718635217,12.2938218,158.05,158.03,3.35157919]
[1724718635399,12.2938218,158.05,158.02,3.35157919]
[1724718635719,18.6217218,158.03,157.98,15.8245]
[1724718636016,12.2938218,157.99,157.96,5.91998605]
[1724718636221,12.2938218,157.99,157.95,22.1584]
[1724718636517,12.2938218,157.99,157.96,6.3305]
[1724718638317,12.2938218,158.01,157.96,6.3305]
[1724718638504,1.58255055,158.0,157.96,6.3305]
[1724718639010,12.2938218,158.01,157.95,15.8277]
[1724718639907,12.2938218,158.01,157.98,6.3296]
[1724718640611,1.58245137,158.0,157.98,6.3296]
[1724718641321,1.58245137,158.0,157.96,8.86635528]
[1724718641622,1.58245137,158.0,157.97,6.3302]
[1724718642510,1.58245137,158.0,157.96,6.3307]
[1724718642511,12.2938218,157.99,157.96,6.3307]
[1724718644115,12.2938218,157.99,157.95,15.8277]
[1724718644116,12.2938218,157.99,157.97,6.3302]
[1724718645118,12.2938218,157.99,157.96,6.3306]
[1724718645316,1.58262607,157.98,157.96,6.3306]
[1724718645913,1.58261272,157.98,157.96,6.3306]
[1724718646933,12.2938218,157.97,157.95,15.8277]
[1724718647224,12.2938218,157.99,157.95,22.1587]
[1724718648224,13.87652052,157.99,157.95,22.1587]
[1724718648614,12.2938218,157.99,157.95,22.1587]
[1724718651621,13.87652914,157.99,157.95,22.1587]
[1724718652123,1.58270817,157.98,157.95,15.8277]
[1724718653128,1.58270817,157.98,157.95,22.1588]
[1724718653907,13.87652878,157.99,157.95,22.1588]
[1724718657437,12.2938218,157.99,157.95,22.1588]
[1724718657825,6.3292,158.0,157.95,22.1588]
[1724718658336,7.91178504,158.0,157.95,22.1588]
[1724718658836,7.91182597,158.0,157.95,22.1588]
[1724718659416,6.3292,158.0,157.95,22.1588]
[1724718660014,7.91182614,158.0,157.95,22.1588]
[1724718660959,12.2938218,157.99,157.95,22.1588]
[1724718661125,1.58262827,157.98,157.95,22.1588]
[1724718661530,12.2938218,157.99,157.95,22.1588]
[1724718661834,12.2938218,158.01,157.97,6.3302]
[1724718663130,6.3284,158.02,157.97,6.3302]
[1724718663337,12.2938218,158.01,157.97,6.3302]
[1724718663536,13.8761968,158.01,157.97,6.3302]
[1724718665544,20.2048968,158.01,157.97,6.3302]
[1724718665745,1.58254703,158.0,157.97,6.3302]
[1724718666438,18.6225218,158.01,157.97,6.3302]
[1724718667944,1.58254549,158.0,157.97,6.3302]
[1724718668140,1.58254549,158.0,157.96,6.3305]
[1724718675349,12.2938218,157.99,157.96,6.3305]
[1724718675647,12.2938218,157.97,157.95,15.8277]
[1724718675992,12.2938218,157.97,157.93,6.3318]
[1724718675993,1.582764,157.96,157.93,6.3318]
[1724718676130,12.2938218,157.95,157.92,15.8305]
[1724718676733,12.2938218,157.95,157.92,22.1625]
[1724718677137,12.2938218,157.95,157.93,6.3318]
[1724718677858,12.2938218,157.95,157.92,22.1627]
[1724718678436,12.2938218,157.93,157.89,15.8333]
[1724718678651,12.2938218,157.93,157.82,16.4906]
[1724718678652,12.2938218,157.91,157.82,16.4906]
[1724718678841,12.2938218,157.87,157.83,7.92176259]
[1724718679052,12.2938218,157.85,157.82,22.1761]
[1724718679234,12.2938218,157.85,157.79,6.4032]
[1724718679435,12.2938218,157.85,157.8,1.5865981]
[1724718679627,1.58398897,157.84,157.79,6.4032]
[1724718679833,1.58398897,157.84,157.8,1.58667869]
[1724718680033,1.58398897,157.84,157.79,6.4032]
[1724718680257,1.58398897,157.84,157.8,1.58668234]
[1724718680562,1.58398897,157.84,157.81,1.58663355]
[1724718680862,6.3339,157.88,157.82,6.3362]
[1724718681034,57.2938218,157.87,157.82,6.3362]
[1724718681243,57.2938218,157.87,157.83,6.3358]
[1724718681664,7.91739851,157.89,157.84,15.8385]
[1724718681665,12.2938218,157.89,157.84,15.8385]
[1724718681975,20.21100909,157.89,157.84,15.8385]
[1724718682150,12.2938218,157.87,157.84,15.8385]
[1724718682464,45.0,157.86,157.84,15.8385]
[1724718683557,12.2938218,157.89,157.84,15.8385]
[1724718683744,1.58369875,157.88,157.84,15.8385]
[1724718684663,1.58369875,157.88,157.85,6.3349]
[1724718684850,1.58369875,157.88,157.84,22.1739]
[1724718685670,12.2938218,157.87,157.84,15.8385]
[1724718685977,46.58392252,157.86,157.84,15.8385]
[1724718687548,45.0,157.86,157.84,15.8385]
[1724718689054,18.6273218,157.89,157.84,22.1738]
[1724718689267,12.2938218,157.89,157.85,6.3347]
[1724718689459,1.58369564,157.88,157.85,6.3347]
[1724718689779,12.2938218,157.89,157.85,6.3347]
[1724718690072,1.58369743,157.88,157.85,6.3347]
[1724718690672,12.2938218,157.89,157.85,6.3347]
[1724718690873,13.87752601,157.89,157.85,6.3347]
[1724718693250,12.2938218,157.89,157.85,6.3347]
[1724718693450,13.87751494,157.89,157.85,6.3347]
[1724718697491,12.2938218,157.87,157.81,15.8415]
[1724718697797,12.2938218,157.85,157.81,15.8415]
[1724718698083,45.0,157.86,157.83,6.3359]
[1724718699778,1.58398153,157.85,157.83,6.3359]
[1724718700580,45.0,157.86,157.83,6.3359]
[1724718701082,57.2938218,157.87,157.83,6.3359]
[1724718701300,58.87780346,157.87,157.83,6.3359]
[1724718702158,12.2938218,157.85,157.82,6.3362]
[1724718702384,46.58417337,157.84,157.81,15.8415]
[1724718703193,45.0,157.84,157.81,22.1781]
[1724718704756,12.2938218,157.85,157.81,22.1781]
[1724718705358,13.87793087,157.85,157.81,22.1781]
[1724718707689,13.87793087,157.85,157.82,6.3363]
[1724718709595,45.0,157.84,157.81,22.1781]
[1724718709766,1.5841644,157.83,157.81,22.1781]
[1724718710779,45.0,157.84,157.81,22.1781]
[1724718711868,12.2938218,157.85,157.82,6.3362]
[1724718712392,6.3343,157.88,157.82,6.3362]
[1724718712578,15.8324,157.91,157.82,6.3362]
[1724718712579,83.6281218,157.87,157.82,6.3362]
[1724718712778,7.91897069,157.86,157.81,22.1781]
[1724718713090,57.2938218,157.85,157.81,22.1781]
[1724718715584,58.87801748,157.85,157.81,22.1781]
[1724718715790,57.2938218,157.85,157.81,22.1781]
[1724718715996,57.2938218,157.85,157.82,6.3362]
[1724718716186,16.1125,157.92,157.83,15.8392]
[1724718716504,6.3327,157.91,157.81,6.4292]
[1724718716681,12.2938218,157.89,157.86,6.3346]
[1724718716887,1.58381581,157.88,157.85,22.1724]
[1724718717676,46.58381581,157.88,157.85,22.1724]
[1724718718296,45.0,157.88,157.85,22.1724]
[1724718718806,45.0,157.88,157.86,6.3347]
[1724718719281,12.2938218,157.89,157.86,6.3347]
[1724718719485,6.3327,157.91,157.86,6.3347]
[1724718719789,57.2938218,157.9,157.87,6.3342]
[1724718721583,1.58362194,157.89,157.87,6.3342]
[1724718721784,58.8774427,157.9,157.87,6.3342]
[1724718722677,1.58361774,157.89,157.87,6.3342]
[1724718722887,58.87744393,157.9,157.87,6.3342]
[1724718723592,58.87744393,157.9,157.88,1.58624971]
[1724718723793,58.87744393,157.9,157.87,6.3342]
[1724718723993,58.87744393,157.9,157.88,1.58624642]
[1724718724195,45.0,157.9,157.87,6.3342]
[1724718724507,45.0,157.91,157.88,1.5862459]
[1724718724811,45.0,157.91,157.89,1.5862459]
[1724718725010,45.0,157.91,157.87,6.3342]
[1724718725308,1.58356026,157.9,157.88,1.58623593]
[1724718725510,1.58356026,157.9,157.89,1.58623593]
[1724718725807,1.58356026,157.9,157.89,1.58623595]
[1724718726043,1.58356026,157.9,157.89,3.17247208]
[1724718727901,1.58356026,157.9,157.89,3.17247868]
[1724718728208,1.58356026,157.9,157.89,1.58624273]
[1724718729303,65.2101156,157.91,157.87,6.3342]
[1724718729507,65.2101156,157.91,157.88,1.58623613]
[1724718729707,65.2101156,157.91,157.87,6.3342]
[1724718729907,65.2101156,157.91,157.88,1.58623646]
[1724718730209,65.2101156,157.91,157.87,6.3342]
[1724718730381,65.2101156,157.91,157.88,1.58623512]
[1724718730583,65.2101156,157.91,157.87,6.3342]
[1724718730811,65.2101156,157.91,157.88,1.58623665]
[1724718730989,16.2008,157.96,157.87,15.8353]
[1724718731183,16.2008,157.96,157.91,6.3326]
[1724718731184,6.3311,157.95,157.91,6.3326]
[1724718731390,1.58324212,157.94,157.92,1.58588755]
[1724718731601,1.58324212,157.94,157.9,6.333]
[1724718731784,13.87706392,157.94,157.91,1.58589966]
[1724718732111,12.2938218,157.94,157.9,6.333]
[1724718732347,13.87707411,157.94,157.91,1.58589511]
[1724718732527,13.87707411,157.94,157.9,6.333]
[1724718732726,45.0,157.93,157.91,1.58588799]
[1724718732942,45.0,157.93,157.9,6.333]
[1724718733329,45.0,157.93,157.91,1.58588867]
[1724718733621,45.0,157.93,157.9,6.333]
[1724718733821,45.0,157.93,157.91,1.58589679]
[1724718734018,0.08312512,157.97,157.91,1.26659344]
[1724718734227,0.08312512,157.97,157.92,1.58577443]
[1724718734423,0.08312512,157.97,157.96,6.3307]
[1724718734949,0.08312512,157.97,157.96,9.18205151]
[1724718735430,0.08312512,157.97,157.96,7.91605996]
[1724718736454,0.08312512,157.97,157.96,6.3307]
[1724718741131,0.08312512,157.97,157.96,7.59666884]
[1724718741432,0.08312512,157.97,157.96,6.3307]
[1724718742047,0.08312512,157.97,157.96,7.59666827]
[1724718742235,0.08312512,157.97,157.96,6.3307]
[1724718750866,0.08312512,157.97,157.96,7.59652953]
[1724718751960,0.08312512,157.97,157.96,6.3307]
[1724718754665,0.08312512,157.97,157.95,15.8269]
[1724718754842,12.37694692,157.97,157.93,6.3319]
[1724718755041,1.58284916,157.96,157.93,6.3319]
[1724718755376,13.876673,157.95,157.92,15.8303]
[1724718756444,1.58306672,157.94,157.92,15.8303]
[1724718756856,12.2938218,157.95,157.92,15.8303]
[1724718757360,12.2938218,157.95,157.92,22.1624]
[1724718757971,12.2938218,157.96,157.93,6.3317]
[1724718758343,1.58292528,157.95,157.92,22.1626]
[1724718758654,12.2938218,157.94,157.92,22.1626]
[1724718759059,12.2938218,157.94,157.92,15.8303]
[1724718759369,1.58314802,157.93,157.92,15.8303]
[1724718762538,12.2938218,157.94,157.92,22.1626]
[1724718762738,45.0,157.95,157.92,22.1626]
[1724718762957,1.5830554,157.94,157.92,22.1626]
[1724718763368,45.0,157.95,157.92,22.1626]
[1724718763741,46.58304936,157.95,157.92,22.1626]
[1724718765873,45.0,157.95,157.93,6.3318]
[1724718766964,12.2938218,157.96,157.93,6.3318]
[1724718768248,0.08312512,157.97,157.94,6.3314]
[1724718768450,45.08312512,157.97,157.95,6.3308]
[1724718768653,0.08312512,157.97,157.95,6.3308]
[1724718769052,0.08312512,157.97,157.96,6.3307]
[1724718769575,29.05454371,158.0,157.96,6.3307]
[1724718769891,12.2938218,157.98,157.94,15.8282]
[1724718770645,45.0,157.97,157.94,22.1594]
[1724718771763,27.4719218,158.0,157.94,15.8282]
[1724718772071,45.0,157.99,157.94,15.8282]
[1724718772250,46.58259211,157.99,157.96,6.3305]
[1724718772456,1.58265364,157.98,157.96,6.3305]
[1724718773486,45.0,157.99,157.96,6.3305]
[1724718773778,12.2938218,158.0,157.97,6.3301]
[1724718774582,1.58252121,157.99,157.97,6.3301]
[1724718775690,12.2938218,158.0,157.97,6.3301]
[1724718776782,18.6221218,158.02,157.97,7.59604696]
[1724718776986,45.0,158.01,157.97,6.3301]
[1724718777287,45.0,158.01,157.97,1.26590701]
[1724718777483,45.0,158.02,157.97,1.26590701]
[1724718777779,45.0,158.02,157.98,6.3298]
[1724718778303,15.1781,158.04,157.99,6.3291]
[1724718778575,27.4719218,158.04,158.0,6.329]
[1724718780180,29.05410001,158.04,158.0,6.329]
[1724718781165,12.2938218,158.02,157.98,15.8242]
[1724718781367,12.2938218,158.02,157.99,1.5848917]
[1724718781572,12.2938218,158.02,158.0,1.58489305]
[1724718781769,12.2938218,158.02,157.98,15.8242]
[1724718782090,12.2938218,158.0,157.99,1.58489286]
[1724718782260,57.2938218,158.0,157.95,15.8276]
[1724718782581,1.58254697,157.99,157.96,7.91550206]
[1724718782762,1.58254697,157.99,157.97,7.91550206]
[1724718782969,1.58254697,157.99,157.97,6.3303]
[1724718783493,1.58254697,157.99,157.96,6.3306]
[1724718783679,1.58254697,157.99,157.97,1.58520628]
[1724718783860,1.58254697,157.99,157.96,6.3306]
[1724718784060,1.58254697,157.99,157.97,1.58520594]
[1724718784289,1.58254697,157.99,157.96,6.3306]
[1724718784485,1.58254697,157.99,157.97,1.58520628]
[1724718784666,1.58254697,157.99,157.96,6.3306]
[1724718784987,1.58254697,157.99,157.97,1.58520628]
[1724718785286,1.58254697,157.99,157.96,6.3306]
[1724718785470,1.58254697,157.99,157.97,1.58520628]
[1724718785671,1.58254697,157.99,157.96,6.3306]
[1724718785876,1.58254697,157.99,157.97,1.58520594]
[1724718786083,1.58254697,157.99,157.96,6.3306]
[1724718786389,1.58254697,157.99,157.97,1.58520628]
[1724718786585,1.58254697,157.99,157.96,6.3306]
[1724718786766,1.58254697,157.99,157.97,1.58520594]
[1724718786962,1.58254697,157.99,157.96,6.3306]
[1724718787162,1.58254697,157.99,157.97,1.58519816]
[1724718787459,1.58254697,157.99,157.96,6.3306]
[1724718787660,1.58254697,157.99,157.97,1.58519816]
[1724718788092,1.58254697,157.99,157.96,6.3306]
[1724718788894,1.58254697,157.99,157.97,1.58520493]
[1724718790476,52.91204697,157.99,157.97,1.58520493]
[1724718790791,12.2938218,157.98,157.97,1.58520493]
[1724718790996,57.2938218,157.98,157.96,1.0]
[1724718791172,12.2938218,157.98,157.96,1.0]
[1724718797705,45.0,157.99,157.96,7.3305]
[1724718797905,6.2293,158.03,157.97,1.58523063]
[1724718798094,12.2938218,158.0,157.96,7.3305]
[1724718798292,12.2938218,158.0,157.97,1.5852303]
[1724718798494,12.2938218,158.0,157.96,7.3305]
[1724718798801,12.2938218,158.0,157.97,1.58521518]
[1724718798992,12.2938218,158.0,157.96,7.3305]
[1724718799198,13.87642296,158.0,157.97,1.50208355]
[1724718799402,13.87642296,158.0,157.96,7.3305]
[1724718800697,45.0,157.99,157.96,1.0]
[1724718800897,13.87654233,157.98,157.96,1.0]
[1724718801209,12.2938218,157.98,157.96,1.0]
[1724718803014,12.2938218,157.98,157.96,7.3306]
[1724718803221,12.2938218,158.0,157.96,7.3306]
[1724718803601,1.58259937,157.99,157.96,7.3306]
[1724718804913,13.87643121,158.0,157.96,7.3306]
[1724718805120,12.2938218,158.0,157.96,7.3306]
[1724718805821,12.2938218,158.0,157.97,6.3302]
[1724718805989,12.2938218,158.02,157.97,15.8253]
[1724718806400,12.2938218,158.02,157.99,6.3295]
[1724718808123,12.2938218,158.02,158.0,6.329]
[1724718809917,12.2938218,158.02,157.99,22.1524]
[1724718811330,12.2938218,158.02,158.0,1.58491854]
[1724718811504,12.2938218,158.02,157.99,22.1524]
[1724718811702,12.2938218,158.02,158.0,1.58490498]
[1724718811916,12.2938218,158.02,158.01,1.58490498]
[1724718815433,12.2938218,158.02,157.99,22.1524]
[1724718815735,1.58235462,158.01,158.0,1.58491532]
[1724718816144,1.58235462,158.01,157.99,22.1524]
[1724718816432,1.58235462,158.01,158.0,1.58491599]
[1724718818237,21.5056,158.04,158.0,1.58491599]
[1724718818532,12.2938218,158.02,158.01,1.58491599]
[1724718818740,57.2938218,158.02,158.01,1.58491599]
[1724718820032,57.2938218,158.02,157.99,22.1524]
[1724718820333,57.2938218,158.02,158.0,1.58495857]
[1724718820531,57.2938218,158.02,158.01,1.58495857]
[1724718822728,57.2938218,158.02,158.01,1.58490436]
[1724718823323,57.2938218,158.02,157.99,22.1524]
[1724718823838,57.2938218,158.02,158.0,1.5849126]
[1724718824140,57.2938218,158.02,158.01,1.58489704]
[1724718824441,12.2938218,158.04,158.01,1.58489704]
[1724718824612,12.2938218,158.04,158.0,6.3288]
[1724718824813,15.3344,158.08,158.01,17.40616997]
[1724718825034,15.3344,158.08,158.04,6.3274]
[1724718825234,6.2707,158.11,158.05,7.91141245]
[1724718825235,6.3252,158.1,158.05,7.91141245]
[1724718825453,12.4708518,158.13,158.05,1.26530836]
[1724718825744,0.17703,158.13,158.09,6.3252]
[1724718827038,1.75833963,158.13,158.09,6.3252]
[1724718827238,12.2938218,158.12,158.07,22.1409]
[1724718830165,12.2938218,158.12,158.08,6.3257]
[1724718831475,1.58128034,158.11,158.08,6.3257]
[1724718833242,12.2938218,158.12,158.08,6.3257]
[1724718834262,1.5813725,158.11,158.08,6.3257]
[1724718834469,13.87538687,158.1,158.04,22.1456]
[1724718834664,12.2938218,158.08,158.04,22.1456]
[1724718834965,12.2938218,158.08,158.05,6.327]
[1724718839771,12.2938218,158.08,158.06,6.3266]
[1724718839965,12.2938218,158.1,158.06,6.3266]
[1724718840880,1.58152491,158.09,158.05,6.327]
[1724718841253,1.58152491,158.09,158.06,6.3266]
[1724718842271,12.2938218,158.1,158.06,6.3266]
[1724718842486,13.87538054,158.1,158.06,6.3266]
[1724718842664,12.2938218,158.1,158.06,6.3266]
[1724718842869,18.6182218,158.12,158.07,6.3262]
[1724718843178,20.19962843,158.12,158.07,6.3262]
[1724718843567,12.2938218,158.1,158.06,22.1427]
[1724718844285,13.87536999,158.1,158.06,22.1427]
[1724718844488,12.2938218,158.1,158.06,22.1427]
[1724718846399,13.87536899,158.1,158.06,22.1427]
[1724718846588,12.2938218,158.1,158.06,22.1427]
[1724718848470,12.2938218,158.08,158.04,6.3273]
[1724718848663,12.2938218,158.06,158.03,15.8193]
[1724718848872,12.2938218,158.04,158.03,15.8193]
[1724718860899,12.2938218,158.04,158.02,6.3282]
[1724718862101,7.90870896,158.06,158.02,6.3282]
[1724718862289,57.2938218,158.05,158.02,6.3282]
[1724718869917,57.2938218,158.05,158.01,6.3286]
[1724718870125,12.2938218,158.03,158.0,22.1513]
[1724718870332,12.2938218,158.03,158.01,1.5848041]
[1724718870532,12.2938218,158.03,158.01,6.3286]
[1724718872239,1.58208441,158.02,157.97,15.8254]
[1724718872399,12.2938218,157.99,157.98,7.91468067]
[1724718872734,63.6233218,157.99,157.96,1.0]
[1724718872932,1.58273482,157.98,157.96,1.0]
[1724718874019,12.2938218,157.99,157.96,1.0]
[1724718875000,1.58260798,157.98,157.96,1.0]
[1724718876434,12.9431,158.03,157.97,7.91514765]
[1724718876617,12.2938218,158.01,157.98,1.58497565]
[1724718876821,13.87619475,158.01,157.96,16.826]
[1724718877014,13.87619475,158.01,157.97,1.58497648]
[1724718877328,13.87619475,158.01,157.98,1.58497648]
[1724718877505,13.87619475,158.01,157.96,16.826]
[1724718877706,13.87619475,158.01,157.98,6.3298]
[1724718877902,12.2938218,158.01,157.98,6.3298]
[1724718878920,13.87619517,158.01,157.98,6.3298]
[1724718879131,12.2938218,158.01,157.98,6.3298]
[1724718879810,1.58249471,158.0,157.96,23.1566]
[1724718880105,45.0,158.0,157.97,1.58511882]
[1724718880317,45.0,158.0,157.96,23.1566]
[1724718880629,45.0,158.0,157.97,1.58507078]
[1724718880838,45.0,158.0,157.96,23.1566]
[1724718881037,45.0,158.0,157.97,1.58508632]
[1724718881211,45.0,158.0,157.96,23.1566]
[1724718881407,45.0,158.0,157.97,1.58511895]
[1724718881621,45.0,158.0,157.96,23.1566]
[1724718882721,45.0,158.0,157.97,1.58513518]
[1724718883017,45.0,158.0,157.96,23.1566]
[1724718883729,45.0,158.0,157.97,1.58510724]
[1724718883935,45.0,158.0,157.97,6.3303]
[1724718885018,45.0,158.0,157.96,23.1566]
[1724718885019,12.2938218,157.99,157.96,23.1566]
[1724718885224,45.0,157.98,157.96,23.1566]
[1724718889427,12.2938218,157.99,157.96,23.1566]
[1724718890327,1.58265849,157.98,157.96,23.1566]
[1724718890756,12.2938218,157.99,157.96,23.1566]
[1724718892358,12.2938218,157.99,157.97,1.58516409]
[1724718892653,57.2938218,157.98,157.96,1.0]
[1724718892834,58.87666767,157.98,157.96,1.0]
[1724718893231,57.2938218,157.98,157.96,1.0]
[1724718893648,12.2938218,157.98,157.96,1.0]
[1724718894152,12.2938218,157.98,157.96,7.3306]
[1724718894533,12.2938218,157.98,157.96,1.0]
[1724718894741,46.58283662,157.97,157.96,1.0]
[1724718894931,12.2938218,157.98,157.96,1.0]
[1724718896029,6.615,158.03,157.96,1.0]
[1724718896231,12.2938218,158.0,157.96,1.0]
[1724718896448,46.58264658,157.99,157.96,1.0]
[1724718896757,13.87649866,157.98,157.96,1.0]
[1724718896947,13.87649866,157.98,157.96,7.3306]
[1724718897761,12.2938218,157.98,157.96,1.0]
[1724718899162,12.2938218,157.98,157.96,7.3306]
[1724718899861,45.0,157.99,157.96,7.3306]
[1724718900159,57.2938218,158.0,157.96,7.3306]
[1724718900369,12.2938218,157.98,157.96,1.0]
[1724718900752,13.87657725,157.98,157.96,1.0]
[1724718901140,45.0,157.97,157.96,1.0]
[1724718906373,57.2938218,157.97,157.96,1.0]
[1724718914181,63.6241218,157.97,157.96,1.0]
[1724718915074,63.6241218,157.97,157.89,15.8332]
[1724718915075,12.2938218,157.93,157.89,15.8332]
[1724718915382,12.2938218,157.91,157.9,4.12293702]
[1724718915550,12.2938218,157.91,157.9,10.45603702]
[1724718916859,12.2938218,157.93,157.91,6.3325]
[1724718917061,12.2938218,157.95,157.92,7.91774501]
[1724718917268,45.0,157.94,157.93,1.58574501]
[1724718917473,45.0,157.94,157.93,1.58562067]
[1724718918489,45.0,157.94,157.93,1.5855963]
[1724718921678,45.0,157.94,157.93,1.58560714]
[1724718924595,12.2938218,157.95,157.93,1.58560714]
[1724718924765,12.2938218,157.95,157.94,1.58560714]
[1724718926479,6.3303,157.97,157.94,1.58560714]
[1724718926671,12.2938218,157.95,157.93,6.3317]
[1724718926873,45.0,157.96,157.94,7.91706338]
[1724718927095,57.2938218,157.97,157.94,6.3315]
[1724718929877,15.1079,157.99,157.95,6.3311]
[1724718930080,15.1079,157.99,157.96,6.3306]
[1724718930285,27.4017218,157.99,157.96,6.3306]
[1724718931305,45.0,157.98,157.96,6.3306]
[1724718931483,45.0,157.98,157.97,6.3303]
[1724718931689,12.2938218,157.99,157.97,6.3303]
[1724718931894,6.3285,158.02,157.97,6.3303]
[1724718932100,15.4536,158.03,157.98,8.86612714]
[1724718932101,45.0,158.01,157.98,8.86612714]
[1724718932380,12.2938218,158.02,157.98,6.3298]
[1724718933012,12.2938218,158.02,157.99,8.86522218]
[1724718933190,12.2938218,158.02,157.99,6.3293]
[1724718934480,12.2938218,158.02,158.0,6.329]
[1724718934676,12.2938218,158.02,157.99,6.3294]
[1724718943288,6.327,158.06,157.99,15.8228]
[1724718943616,1.58214864,158.05,158.01,6.3283]
[1724718944190,18.6208218,158.06,158.01,6.3283]
[1724718944811,45.0,158.05,158.01,15.8211]
[1724718945691,45.0,158.05,158.02,6.3282]